fUST/lending_fUST_20240805
["ID","MTS","AMOUNT","RATE_DAILY","PERIOD"]
[334258455,1722871848469,-151.0,0.00041643,14]
[334258456,1722871848479,-151.0,0.00041643,14]
[334258457,1722871848488,-500.0,0.00041643,31]
[334258458,1722871848497,-176.229671,0.00041643,14]
[334258459,1722871848507,-500.0,0.00041643,31]
[334258460,1722871848516,-200.0,0.00041643,7]
[334258461,1722871848526,-500.0,0.00041643,31]
[334258462,1722871848535,-500.0,0.00041643,31]
[334258463,1722871848544,-500.0,0.00041643,31]
[334258464,1722871848553,-395.332184,0.00041643,14]
[334258465,1722871848563,-395.332184,0.00041643,14]
[334258466,1722871848571,-395.332184,0.00041643,14]
[334258467,1722871848581,-395.332184,0.00041643,14]
[334258468,1722871848591,-395.332184,0.00041643,14]
[334258469,1722871848600,-395.332184,0.00041643,14]
[334258470,1722871848609,-500.0,0.00041643,31]
[334258471,1722871848619,-500.0,0.00041643,31]
[334258472,1722871848628,-500.0,0.00041643,31]
[334258473,1722871848638,-500.0,0.00041643,31]
[334258474,1722871848647,-500.0,0.00041643,31]
[334258475,1722871848657,-500.0,0.00041643,31]
[334258476,1722871848666,-1097.34,0.00041643,31]
[334258477,1722871848676,-151.0,0.00041643,14]
[334258478,1722871848685,-152.356744,0.00041643,14]
[334258479,1722871848695,-500.0,0.00041643,31]
[334258480,1722871848704,-500.0,0.00041643,31]
[334258481,1722871848714,-500.0,0.00041643,31]
[334258482,1722871848724,-151.0,0.00041643,14]
[334258483,1722871848734,-151.0,0.00041643,14]
[334258484,1722871848743,-151.0,0.00041643,14]
[334258485,1722871848756,-220.660041,0.00041643,14]
[334258486,1722871848766,-220.660041,0.00041643,14]
[334258487,1722871848776,-220.660041,0.00041643,14]
[334258488,1722871848795,-220.660041,0.00041643,14]
[334258489,1722871848809,-220.660041,0.00041643,14]
[334258490,1722871848820,-220.660041,0.00041643,14]
[334258491,1722871848831,-220.660041,0.00041643,14]
[334258492,1722871848840,-220.660041,0.00041643,14]
[334258493,1722871848850,-220.660041,0.00041643,14]
[334258494,1722871848860,-220.660041,0.00041643,14]
[334258495,1722871848870,-220.660041,0.00041643,14]
[334258496,1722871848880,-220.660041,0.00041643,14]
[334258497,1722871848891,-220.660041,0.00041643,14]
[334258498,1722871848901,-220.660041,0.00041643,14]
[334258499,1722871848912,-220.660041,0.00041643,14]
[334258500,1722871848922,-220.660041,0.00041643,14]
[334258501,1722871848932,-155.644938,0.00041643,14]
[334258502,1722871848941,-500.0,0.00041643,31]
[334258503,1722871848951,-500.0,0.00041643,31]
[334258504,1722871848961,-1000.0,0.00041643,21]
[334258505,1722871848971,-1000.0,0.00041643,21]
[334258506,1722871848981,-1000.0,0.00041643,21]
[334258507,1722871848992,-1000.0,0.00041643,21]
[334258508,1722871849001,-1000.0,0.00041643,21]
[334258509,1722871849011,-1000.0,0.00041643,21]
[334258510,1722871849021,-1000.0,0.00041643,21]
[334258511,1722871849031,-1000.0,0.00041643,21]
[334258512,1722871849041,-1000.0,0.00041643,21]
[334258513,1722871849051,-1000.0,0.00041643,21]
[334258514,1722871849061,-1000.0,0.00041643,21]
[334258515,1722871849070,-1000.0,0.00041643,21]
[334258516,1722871849080,-1000.0,0.00041643,21]
[334258517,1722871849090,-1000.0,0.00041643,21]
[334258518,1722871849099,-1000.0,0.00041643,21]
[334258519,1722871849109,-1000.0,0.00041643,21]
[334258520,1722871849118,-1000.0,0.00041643,21]
[334258521,1722871849129,-1000.0,0.00041643,21]
[334258522,1722871849141,-1000.0,0.00041643,21]
[334258523,1722871849162,-1000.0,0.00041643,21]
[334258524,1722871849172,-1000.0,0.00041643,21]
[334258525,1722871849182,-1000.0,0.00041643,21]
[334258526,1722871849192,-1000.0,0.00041643,21]
[334258527,1722871849204,-1000.0,0.00041643,21]
[334258528,1722871849214,-1000.0,0.00041643,21]
[334258529,1722871849223,-1000.0,0.00041643,21]
[334258530,1722871849233,-1000.0,0.00041643,21]
[334258531,1722871849243,-1000.0,0.00041643,21]
[334258532,1722871849252,-1000.0,0.00041643,21]
[334258533,1722871849262,-1000.0,0.00041643,21]
[334258534,1722871849272,-1000.0,0.00041643,21]
[334258535,1722871849281,-1000.0,0.00041643,21]
[334258536,1722871849291,-1000.0,0.00041643,21]
[334258537,1722871849301,-1000.0,0.00041643,21]
[334258538,1722871849311,-1000.0,0.00041643,21]
[334258539,1722871849321,-1000.0,0.00041643,21]
[334258540,1722871849330,-1000.0,0.00041643,21]
[334258541,1722871849340,-1000.0,0.00041643,21]
[334258542,1722871849350,-1000.0,0.00041643,21]
[334258543,1722871849360,-1000.0,0.00041643,21]
[334258544,1722871849370,-1000.0,0.00041643,21]
[334258545,1722871849379,-1000.0,0.00041643,21]
[334258546,1722871849389,-1000.0,0.00041643,21]
[334258547,1722871849399,-1000.0,0.00041643,21]
[334258548,1722871849409,-1000.0,0.00041643,21]
[334258549,1722871849418,-1000.0,0.00041643,21]
[334258550,1722871849428,-1000.0,0.00041643,21]
[334258551,1722871849438,-1000.0,0.00041643,21]
[334258552,1722871849447,-1000.0,0.00041643,21]
[334258553,1722871849457,-1000.0,0.00041643,21]
[334258554,1722871849467,-1000.0,0.00041643,21]
[334258555,1722871849476,-1000.0,0.00041643,21]
[334258556,1722871849487,-1000.0,0.00041643,21]
[334258557,1722871849496,-1000.0,0.00041643,21]
[334258558,1722871849506,-1000.0,0.00041643,21]
[334258559,1722871849515,-1000.0,0.00041643,21]
[334258560,1722871849525,-1000.0,0.00041643,21]
[334258561,1722871849535,-1000.0,0.00041643,21]
[334258562,1722871849544,-1000.0,0.00041643,21]
[334258563,1722871849553,-1000.0,0.00041643,21]
[334258564,1722871849563,-1000.0,0.00041643,21]
[334258565,1722871849573,-1000.0,0.00041643,21]
[334258566,1722871849582,-1000.0,0.00041643,21]
[334258567,1722871849593,-1000.0,0.00041643,21]
[334258568,1722871849603,-1000.0,0.00041643,21]
[334258569,1722871849614,-1000.0,0.00041643,21]
[334258570,1722871849625,-1000.0,0.00041643,21]
[334258571,1722871849635,-1000.0,0.00041643,21]
[334258572,1722871849648,-710.24619728,0.00041643,21]
[334258573,1722871849819,-289.75380272,0.00041643,21]
[334258574,1722871849830,-1000.0,0.00041643,21]
[334258575,1722871849840,-1000.0,0.00041643,21]
[334258576,1722871849850,-1000.0,0.00041643,21]
[334258577,1722871849860,-1000.0,0.00041643,21]
[334258578,1722871849870,-1000.0,0.00041643,21]
[334258579,1722871849879,-1000.0,0.00041643,21]
[334258580,1722871849889,-1000.0,0.00041643,21]
[334258581,1722871849898,-1000.0,0.00041643,21]
[334258582,1722871849907,-1000.0,0.00041643,21]
[334258583,1722871849917,-1000.0,0.00041643,21]
[334258584,1722871849927,-1000.0,0.00041643,21]
[334258585,1722871849938,-1000.0,0.00041643,21]
[334258586,1722871849947,-1000.0,0.00041643,21]
[334258587,1722871849956,-1000.0,0.00041643,21]
[334258588,1722871849966,-1000.0,0.00041643,21]
[334258589,1722871849975,-1000.0,0.00041643,21]
[334258590,1722871849984,-1000.0,0.00041643,21]
[334258591,1722871849994,-1000.0,0.00041643,21]
[334258592,1722871850004,-1000.0,0.00041643,21]
[334258593,1722871850014,-1000.0,0.00041643,21]
[334258594,1722871850023,-279.70508064,0.00041643,31]
[334258595,1722871850033,-500.0,0.00041643,31]
[334258596,1722871850042,-1811.3,0.00041643,31]
[334258597,1722871850052,-1594.63,0.00041643,20]
[334258598,1722871850062,-2143.516907,0.00041643,14]
[334258599,1722871850072,-2143.516907,0.00041643,14]
[334258600,1722871850082,-2143.516907,0.00041643,14]
[334258601,1722871850091,-2143.516907,0.00041643,14]
[334258602,1722871850101,-2143.516907,0.00041643,14]
[334258603,1722871850110,-2143.516907,0.00041643,14]
[334258604,1722871850120,-1787.09068154,0.00041643,14]
[334258605,1722871850145,-356.42622546,0.00041643,14]
[334258606,1722871850154,-2143.516907,0.00041643,14]
[334258607,1722871850164,-2143.516907,0.00041643,14]
[334258608,1722871850173,-2143.516907,0.00041643,14]
[334258609,1722871850183,-2143.516907,0.00041643,14]
[334258610,1722871850193,-2143.516907,0.00041643,14]
[334258611,1722871850203,-2143.516907,0.00041643,14]
[334258612,1722871850213,-2143.516907,0.00041643,14]
[334258613,1722871850222,-2143.516907,0.00041643,14]
[334258614,1722871850231,-2143.516907,0.00041643,14]
[334258615,1722871850241,-389.40010898,0.00041643,31]
[334258616,1722871850250,-652.942276,0.00041643,14]
[334258617,1722871850260,-652.942276,0.00041643,14]
[334258618,1722871850269,-652.942276,0.00041643,14]
[334258619,1722871850278,-652.942276,0.00041643,14]
[334258620,1722871850288,-652.942276,0.00041643,14]
[334258621,1722871850298,-652.942276,0.00041643,14]
[334258622,1722871850307,-652.942276,0.00041643,14]
[334258623,1722871850317,-652.942276,0.00041643,14]
[334258624,1722871850327,-202.008349,0.00041643,14]
[334258625,1722871850337,-202.008349,0.00041643,14]
[334258626,1722871850346,-652.942276,0.00041643,14]
[334258627,1722871850357,-202.008349,0.00041643,14]
[334258628,1722871850367,-0.69641002,0.00041643,14]
[334258629,1722871850379,-652.24586598,0.00041643,14]
[334258630,1722871850389,-202.008349,0.00041643,14]
[334258631,1722871850555,-652.942276,0.00041643,14]
[334258632,1722871850564,-202.008349,0.00041643,14]
[334258633,1722871850574,-652.942276,0.00041643,14]
[334258634,1722871850583,-202.008349,0.00041643,14]
[334258635,1722871850592,-652.942276,0.00041643,14]
[334258636,1722871850602,-202.008349,0.00041643,14]
[334258637,1722871850611,-652.942276,0.00041643,14]
[334258638,1722871850621,-202.008349,0.00041643,14]
[334258639,1722871850630,-652.942276,0.00041643,14]
[334258640,1722871850639,-652.942276,0.00041643,14]
[334258641,1722871850647,-202.008349,0.00041643,14]
[334258642,1722871850657,-202.008349,0.00041643,14]
[334258643,1722871850667,-202.008349,0.00041643,14]
[334258644,1722871850676,-202.008349,0.00041643,14]
[334258645,1722871850685,-202.008349,0.00041643,14]
[334258646,1722871850694,-202.008349,0.00041643,14]
[334258647,1722871850704,-202.008349,0.00041643,14]
[334258648,1722871850713,-202.008349,0.00041643,14]
[334258649,1722871850722,-151.0,0.00041643,14]
[334258650,1722871850732,-151.0,0.00041643,14]
[334258651,1722871850741,-151.0,0.00041643,14]
[334258652,1722871850750,-151.0,0.00041643,14]
[334258653,1722871850759,-151.0,0.00041643,14]
[334258654,1722871850768,-151.0,0.00041643,14]
[334258655,1722871850777,-151.0,0.00041643,14]
[334258656,1722871850786,-151.0,0.00041643,14]
[334258657,1722871850796,-151.0,0.00041643,14]
[334258658,1722871850805,-235.965699,0.00041643,14]
[334258659,1722871850814,-151.0,0.00041643,14]
[334258660,1722871850824,-151.0,0.00041643,14]
[334258661,1722871850833,-151.0,0.00041643,14]
[334258662,1722871850843,-151.0,0.00041643,14]
[334258663,1722871850852,-151.0,0.00041643,14]
[334258664,1722871850862,-151.0,0.00041643,14]
[334258665,1722871850872,-151.0,0.00041643,14]
[334258666,1722871850882,-151.0,0.00041643,14]
[334258667,1722871850891,-151.0,0.00041643,14]
[334258668,1722871850901,-151.0,0.00041643,14]
[334258669,1722871850910,-151.0,0.00041643,14]
[334258670,1722871850920,-151.0,0.00041643,14]
[334258671,1722871850929,-151.0,0.00041643,14]
[334258672,1722871850938,-234.688643,0.00041643,14]
[334258673,1722871850947,-151.0,0.00041643,14]
[334258674,1722871850957,-153.458346,0.00041643,14]
[334258675,1722871850966,-1096.97622534,0.00041643,14]
[334258676,1722871851006,-468.54922066,0.00041643,14]
[334258677,1722871851018,-492.87391375,0.00041643,14]
[334258678,1722871851030,-1072.65153225,0.00041643,14]
[334258679,1722871851041,-1565.525446,0.00041643,14]
[334258680,1722871851051,-1565.525446,0.00041643,14]
[334258681,1722871851061,-1565.525446,0.00041643,14]
[334258682,1722871851071,-1565.525446,0.00041643,14]
[334258683,1722871851081,-1565.525446,0.00041643,14]
[334258684,1722871851091,-1565.525446,0.00041643,14]
[334258685,1722871851101,-1565.525446,0.00041643,14]
[334258686,1722871851111,-1565.525446,0.00041643,14]
[334258687,1722871851120,-1565.525446,0.00041643,14]
[334258688,1722871851130,-1565.525446,0.00041643,14]
[334258689,1722871851140,-1565.525446,0.00041643,14]
[334258690,1722871851151,-1565.525446,0.00041643,14]
[334258691,1722871851161,-1565.525446,0.00041643,14]
[334258692,1722871851171,-1565.52545166,0.00041643,14]
[334258693,1722871851182,-530.35702832,0.00041643,120]
[334258694,1722871851192,-2000.0,0.00041643,31]
[334258695,1722871851202,-151.0,0.00041643,14]
[334258696,1722871851212,-151.0,0.00041643,14]
[334258697,1722871851221,-151.0,0.00041643,14]
[334258698,1722871851230,-151.0,0.00041643,14]
[334258699,1722871851239,-151.0,0.00041643,14]
[334258700,1722871851249,-151.0,0.00041643,14]
[334258701,1722871851259,-258.243827,0.00041643,14]
[334258702,1722871851269,-936.12041,0.00041643,14]
[334258703,1722871851278,-936.12041,0.00041643,14]
[334258704,1722871851288,-936.12041,0.00041643,14]
[334258705,1722871851298,-936.12041,0.00041643,14]
[334258706,1722871851308,-936.12041,0.00041643,14]
[334258707,1722871851319,-936.12041,0.00041643,14]
[334258708,1722871851330,-936.12041,0.00041643,14]
[334258709,1722871851340,-936.12041,0.00041643,14]
[334258710,1722871851351,-936.12041,0.00041643,14]
[334258711,1722871851361,-936.12041,0.00041643,14]
[334258712,1722871851372,-936.12041,0.00041643,14]
[334258713,1722871851382,-936.12041,0.00041643,14]
[334258714,1722871851393,-936.12041,0.00041643,14]
[334258715,1722871851403,-936.12041,0.00041643,14]
[334258716,1722871851412,-936.12041,0.00041643,14]
[334258717,1722871851422,-936.120413,0.00041643,14]
[334258718,1722871851432,-588.121954,0.00041643,14]
[334258719,1722871851442,-588.121954,0.00041643,14]
[334258720,1722871851452,-588.121954,0.00041643,14]
[334258721,1722871851463,-588.121954,0.00041643,14]
[334258722,1722871851472,-588.121954,0.00041643,14]
[334258723,1722871851483,-588.121954,0.00041643,14]
[334258724,1722871851492,-588.121954,0.00041643,14]
[334258725,1722871851502,-588.121954,0.00041643,14]
[334258726,1722871851513,-588.121954,0.00041643,14]
[334258727,1722871851523,-588.121954,0.00041643,14]
[334258728,1722871851533,-588.121954,0.00041643,14]
[334258729,1722871851543,-588.121954,0.00041643,14]
[334258730,1722871851553,-588.121954,0.00041643,14]
[334258731,1722871851563,-151.0,0.00041643,14]
[334258732,1722871851573,-588.121954,0.00041643,14]
[334258733,1722871851584,-588.121954,0.00041643,14]
[334258734,1722871851594,-588.121955,0.00041643,14]
[334258735,1722871851604,-1645.520006,0.00041643,14]
[334258736,1722871851615,-1645.520006,0.00041643,14]
[334258737,1722871851625,-1645.520006,0.00041643,14]
[334258738,1722871851636,-1645.520006,0.00041643,14]
[334258739,1722871851646,-1645.520006,0.00041643,14]
[334258740,1722871851656,-1645.520006,0.00041643,14]
[334258741,1722871851666,-1645.520006,0.00041643,14]
[334258742,1722871851676,-435.885156,0.00041643,14]
[334258743,1722871851686,-1645.520006,0.00041643,14]
[334258744,1722871851696,-435.885156,0.00041643,14]
[334258745,1722871851706,-435.885156,0.00041643,14]
[334258746,1722871851716,-435.885156,0.00041643,14]
[334258747,1722871851726,-1645.520006,0.00041643,14]
[334258748,1722871851736,-435.885156,0.00041643,14]
[334258749,1722871851746,-1645.520006,0.00041643,14]
[334258750,1722871851756,-435.885156,0.00041643,14]
[334258751,1722871851766,-1645.520006,0.00041643,14]
[334258752,1722871851775,-435.885156,0.00041643,14]
[334258753,1722871851785,-1645.520006,0.00041643,14]
[334258754,1722871851794,-435.885156,0.00041643,14]
[334258755,1722871851804,-1645.520006,0.00041643,14]
[334258756,1722871851814,-1645.520006,0.00041643,14]
[334258757,1722871851824,-435.885156,0.00041643,14]
[334258758,1722871851833,-500.0,0.00041643,31]
[334258759,1722871851843,-1645.520006,0.00041643,14]
[334258760,1722871851852,-435.885156,0.00041643,14]
[334258761,1722871851862,-1645.520003,0.00041643,14]
[334258762,1722871851872,-435.885156,0.00041643,14]
[334258763,1722871851881,-435.885156,0.00041643,14]
[334258764,1722871851891,-435.885156,0.00041643,14]
[334258765,1722871851899,-435.885156,0.00041643,14]
[334258766,1722871851909,-435.885156,0.00041643,14]
[334258767,1722871851919,-435.885148,0.00041643,14]
[334258768,1722871851928,-5394.13,0.00041643,31]
[334258769,1722871851939,-602.148214,0.00041643,14]
[334258770,1722871851949,-602.148214,0.00041643,14]
[334258771,1722871851959,-602.148214,0.00041643,14]
[334258772,1722871851969,-602.148214,0.00041643,14]
[334258773,1722871851979,-602.148214,0.00041643,14]
[334258774,1722871851988,-602.148214,0.00041643,14]
[334258775,1722871851998,-602.148214,0.00041643,14]
[334258776,1722871852008,-602.148214,0.00041643,14]
[334258777,1722871852017,-602.148214,0.00041643,14]
[334258778,1722871852026,-602.148214,0.00041643,14]
[334258779,1722871852035,-602.148214,0.00041643,14]
[334258780,1722871852045,-602.148214,0.00041643,14]
[334258781,1722871852054,-602.148214,0.00041643,14]
[334258782,1722871852064,-602.148214,0.00041643,14]
[334258783,1722871852074,-602.148214,0.00041643,14]
[334258784,1722871852084,-602.148217,0.00041643,14]
[334258785,1722871852094,-151.0,0.00041643,14]
[334258786,1722871852103,-151.0,0.00041643,14]
[334258787,1722871852112,-151.0,0.00041643,14]
[334258788,1722871852122,-153.663288,0.00041643,14]
[334258789,1722871852131,-1279.16,0.00041643,31]
[334258790,1722871852140,-1796.813886,0.00041643,14]
[334258791,1722871852150,-1796.813886,0.00041643,14]
[334258792,1722871852169,-1796.813886,0.00041643,14]
[334258793,1722871852178,-1796.813886,0.00041643,14]
[334258794,1722871852188,-151.0,0.00041643,14]
[334258795,1722871852198,-1796.813886,0.00041643,14]
[334258796,1722871852211,-1796.813886,0.00041643,14]
[334258797,1722871852220,-151.0,0.00041643,14]
[334258798,1722871852230,-151.0,0.00041643,14]
[334258799,1722871852241,-1796.813886,0.00041643,14]
[334258800,1722871852250,-225.436928,0.00041643,14]
[334258801,1722871852260,-1796.813886,0.00041643,14]
[334258802,1722871852269,-1796.813886,0.00041643,14]
[334258803,1722871852278,-1796.813886,0.00041643,14]
[334258804,1722871852287,-1796.813886,0.00041643,14]
[334258805,1722871852297,-1796.813886,0.00041643,14]
[334258806,1722871852307,-1796.813886,0.00041643,14]
[334258807,1722871852316,-1796.813886,0.00041643,14]
[334258808,1722871852326,-1796.813886,0.00041643,14]
[334258809,1722871852335,-1796.813878,0.00041643,14]
[334258810,1722871852344,-6603.69,0.00041643,120]
[334258811,1722871852354,-2223.736478,0.00041643,14]
[334258812,1722871852363,-2223.736478,0.00041643,14]
[334258813,1722871852372,-2223.736478,0.00041643,14]
[334258814,1722871852382,-2223.736478,0.00041643,14]
[334258815,1722871852391,-2223.736478,0.00041643,14]
[334258816,1722871852401,-2223.736478,0.00041643,14]
[334258817,1722871852410,-2223.736478,0.00041643,14]
[334258818,1722871852418,-2176.88129582,0.00041643,14]
[334258819,1722871852499,-46.85518218,0.00041643,14]
[334258820,1722871852510,-16.62002132,0.00041643,14]
[334258821,1722871949159,151.0,0.0003,120]
[334258822,1722871949728,151.0,0.00035452,120]
[334258823,1722872469600,273.37336231,0.00027,120]
[334258841,1722872485154,273.37336231,0.00027,120]
[334258844,1722872493142,273.37336231,0.00027,120]
[334258845,1722872501298,273.37336231,0.00027,120]
[334258846,1722872509894,273.37336231,0.00027,120]
[334258847,1722872525574,273.37336231,9.9e-05,2]
[334258848,1722872533693,273.37336231,9.9e-05,2]
[334258849,1722872541851,273.37336231,9.9e-05,2]
[334258850,1722872549935,273.37336231,9.9e-05,2]
[334258851,1722872558098,273.37336231,9.9e-05,2]
[334258852,1722872566781,273.37336231,9.9e-05,2]
[334258853,1722872575123,273.37336231,9.9e-05,2]
[334258854,1722872583742,273.37336231,9.9e-05,2]
[334258855,1722872591925,273.37336231,9.9e-05,2]
[334258857,1722872599869,273.37336231,9.9e-05,2]
[334258858,1722872601275,271.18563857,0.00012,2]
[334258859,1722872605930,9860.6807778,0.00012,2]
[334258860,1722872608733,273.37336231,9.9e-05,2]
[334258861,1722872616016,4712.37284123,0.00012,2]
[334258862,1722872617316,273.37336231,9.9e-05,2]
[334258863,1722872632235,2108.40472945,0.00012,2]
[334258864,1722872633925,273.37336231,9.9e-05,2]
[334258865,1722872635621,522.86776842,0.00012,2]
[334258866,1722872636456,2596.89778515,0.00012,2]
[334258867,1722872642421,273.37336231,9.9e-05,2]
[334258869,1722872650655,273.37336231,9.9e-05,2]
[334258870,1722872658637,273.37336231,9.9e-05,2]
[334258871,1722872667666,273.37336231,9.9e-05,2]
[334258872,1722872675531,273.37336231,9.9e-05,2]
[334258873,1722872684137,273.37336231,9.9e-05,2]
[334258874,1722872692039,273.37336231,9.9e-05,2]
[334258875,1722872694761,180.87946219,9.999e-05,2]
[334258876,1722872695303,2192.47680738,0.0001,2]
[334258877,1722872695639,1626.86783463,0.00012,2]
[334258878,1722872700433,273.37336231,9.9e-05,2]
[334258879,1722872701224,218.66301514,0.00012,2]
[334258880,1722872708481,273.37336231,9.9e-05,2]
[334258881,1722872712054,3080.88889929,0.00012,2]
[334258882,1722872712524,154.79678224,9.999e-05,2]
[334258883,1722872713974,154.63660398,0.00012,2]
[334258884,1722872716701,273.37336231,9.9e-05,2]
[334258885,1722872718670,202.2554037,0.00012,2]
[334258886,1722872719765,19463.40149674,9.9e-05,2]
[334258887,1722872720060,156.83154324,9.999e-05,2]
[334258888,1722872723303,193.96535773,0.00012,2]
[334258889,1722872724639,273.37336231,9.9e-05,2]
[334258890,1722872725884,942.05026838,9.999e-05,2]
[334258891,1722872726921,569.37379121,0.00012,2]
[334258892,1722872728466,154.71377951,0.00012,2]
[334258893,1722872729370,600.69981744,0.00012,2]
[334258894,1722872730790,342.54102064,0.00012,2]
[334258895,1722872730823,494.10879056,0.00012,2]
[334258896,1722872732360,154.76626295,0.00012,2]
[334258897,1722872732582,154.74080243,0.00012,2]
[334258898,1722872733736,542.94098629,0.00012,2]
[334258899,1722872733897,154.71377951,0.00012,2]
[334258900,1722872734644,154.8372147,0.00012,2]
[334258901,1722872735442,155.06625104,0.00012,2]
[334258902,1722872737231,1792.60015826,0.00012,2]
[334258903,1722872737255,315.80457119,0.00012,2]
[334258904,1722872738574,521.99851068,0.00012,2]
[334258905,1722872740538,273.37336231,9.9e-05,2]
[334258906,1722872740766,16287.01982776,9.9e-05,2]
[334258907,1722872741960,156.97617408,0.00012,2]
[334258908,1722872742313,404.65460675,0.00012,2]
[334258909,1722872744758,241.14492435,0.00012,2]
[334258910,1722872747155,157.62048758,9.9e-05,2]
[334258911,1722872747626,237.07330954,9.999e-05,2]
[334258912,1722872748018,154.8913051,0.00012,2]
[334258913,1722872748848,155.00410665,0.00012,2]
[334258914,1722872749520,290.31500293,9.999e-05,2]
[334258915,1722872750461,3785.54866294,0.00012,2]
[334258916,1722872751440,154.63660398,0.00012,2]
[334258917,1722872751787,195.44979789,0.00012,2]
[334258918,1722872751827,210.97055525,0.00012,2]
[334258919,1722872751971,154.71377951,0.00012,2]
[334258920,1722872752216,232.01277601,9.9e-05,2]
[334258921,1722872752725,218.30768663,0.00012,2]
[334258922,1722872753371,154.92000473,0.00012,2]
[334258923,1722872755478,154.87498635,9.999e-05,2]
[334258924,1722872757943,519.46703512,9.999e-05,2]
[334258925,1722872759046,330.73988639,0.00012,2]
[334258926,1722872761326,201.75811956,9.999e-05,2]
[334258927,1722872761967,319.6458186,9.999e-05,2]
[334258928,1722872762288,19463.40149674,0.00012,2]
[334258929,1722872763442,3601.91477368,9.9e-05,2]
[334258930,1722872770603,1292.73629049,0.00012,2]
[334258931,1722872780501,288.16966581,0.0001,2]
[334258933,1722872813750,1382.73887136,0.00012121,2]
[334258934,1722872813860,942.37062895,9.999e-05,2]
[334258935,1722872828119,-205.710553,0.00014247,2]
[334258936,1722872828158,-154.71377951,0.00014545,2]
[334258937,1722872828180,-154.66746188,0.00014545,2]
[334258938,1722872828202,-154.82195475,0.00017,2]
[334258939,1722872828224,-363.468077,0.00017743,2]
[334258940,1722872828246,-154.79103211,0.00018,2]
[334258941,1722872828268,-3660.37790842,0.00019177,2]
[334258942,1722872828298,-330.64806375,0.00019177,2]
[334258944,1722872841145,-442.0504657,0.00019178,4]
[334258945,1722872841169,-513.7315343,0.0001918,2]
[334258946,1722872847103,-4533.5919335,0.0001918,2]
[334258947,1722872868927,161.87363951,0.00012121,2]
[334258951,1722872949246,-250.0,0.00019041,2]
[334258952,1722872949273,-15254.83399934,0.0001918,2]
[334258956,1722872953178,-42341.71391136,0.00019177,2]
[334258957,1722872953209,-3241.82184996,0.0001918,2]
[334258958,1722872953461,-1991.65402436,0.00019256,2]
[334258959,1722872953490,-20759.5327798,0.00019256,2]
[334258960,1722872953512,-951.80625463,0.00019477,2]
[334258961,1722872953533,-190.938832,0.00019537,2]
[334258962,1722872953555,-1091.50397563,0.00019547,2]
[334258963,1722872953577,-1619.97654968,0.00019547,2]
[334258964,1722872953600,-5880.66572787,0.0001999,2]
[334258965,1722872953620,-154.77980433,0.00019999,2]
[334258966,1722872953642,-156.35315554,0.0002,2]
[334258967,1722872953662,-12900.0,0.0002,2]
[334258968,1722872953685,-5850.0,0.00021,2]
[334258969,1722872953711,-277.18370616,0.00021048,2]
[334258970,1722872953732,-1632.70804043,0.00021048,2]
[334258971,1722872953752,-154.79103211,0.0002142,2]
[334258972,1722872953773,-154.79103211,0.0002142,2]
[334258973,1722872953794,-413.94710366,0.00021532,2]
[334258974,1722872953815,-192.54960295,0.00021532,2]
[334258975,1722872953835,-845.47187628,0.00021532,2]
[334258976,1722872953855,-235.98044981,0.00021532,2]
[334258977,1722872953875,-154.63660398,0.00021532,2]
[334258978,1722872953901,-2124.35920477,0.00021532,2]
[334258979,1722872953921,-154.89498593,0.00021532,2]
[334258980,1722872953942,-1500.0,0.00021532,2]
[334258981,1722872953970,-154.63660398,0.00021542,2]
[334258982,1722872953990,-1369.62268226,0.00021542,2]
[334258983,1722872954011,-154.79103211,0.00021542,2]